fUST/lending_fUST_20260530
["ID","MTS","AMOUNT","RATE_DAILY","PERIOD"]
[423388614,1780074655000,-1291.16480066,0.000149,2]
[423388615,1780074655000,-5595.94827783,0.000149,2]
[423388611,1780074655000,-315.58321054,0.00014722,2]
[423388620,1780074655000,-641690.68561682,0.00015,2]
[423388618,1780074655000,-1469.88942136,0.000149,2]
[423388617,1780074655000,-826.81279951,0.000149,2]
[423388616,1780074655000,-459.34044417,0.000149,2]
[423388573,1780074655000,-534.45,0.00014246,2]
[423388622,1780074655000,-2400.10553441,0.00015,2]
[423388623,1780074655000,-3352.4475414,0.00015,2]
[423388625,1780074655000,-252.192,0.00015,2]
[423388628,1780074655000,-500.0,8.219e-05,2]
[423388630,1780074655000,-500.0,9.041e-05,2]
[423388631,1780074655000,-134.63594125,0.00015,2]
[423388629,1780074655000,-500.0,8.493e-05,2]
[423388634,1780074655000,-500.0,8.767e-05,2]
[423388633,1780074655000,-867.36071653,0.00015,2]
[423388632,1780074655000,-585.243046,0.00015,2]
[423388635,1780074655000,-1833.18114726,0.00015,2]
[423388606,1780074655000,-1129.12,0.0001452,2]
[423388602,1780074655000,-1026.6441,0.0001452,2]
[423388619,1780074655000,-2296.70222087,0.000149,2]
[423388604,1780074655000,-3745.67899683,0.0001452,2]
[423388605,1780074655000,-1807.05,0.0001452,2]
[423388572,1780074655000,-572.53,0.00014246,2]
[423388578,1780074655000,-1028.27,0.00014246,2]
[423388583,1780074655000,-1807.05,0.00014246,2]
[423388585,1780074655000,-157.79160527,0.00014261,2]
[423388587,1780074655000,-2258.0,0.00014412,2]
[423388589,1780074655000,-1348.78,0.0001452,2]
[423388586,1780074655000,-151.05,0.000144,2]
[423388591,1780074655000,-1670.93,0.0001452,2]
[423388590,1780074655000,-552.58,0.0001452,2]
[423388592,1780074655000,-604.12,0.0001452,2]
[423388584,1780074655000,-1129.09,0.00014246,2]
[423388595,1780074655000,-572.75,0.0001452,2]
[423388601,1780074655000,-1028.36,0.0001452,2]
[423388603,1780074655000,-591.15,0.0001452,2]
[423388594,1780074655000,-542.13,0.0001452,2]
[423388607,1780074655000,-475.55245985,0.00014625,5]
[423388596,1780074655000,-534.45,0.0001452,2]
[423388600,1780074655000,-1567.27,0.0001452,2]
[423388598,1780074655000,-470.11158996,0.0001452,2]
[423388608,1780074655000,-557.5788265,0.00014641,2]
[423388597,1780074655000,-559.6,0.0001452,2]
[423388593,1780074655000,-504.24,0.0001452,2]
[423388599,1780074655000,-603.97,0.0001452,2]
[423388659,1780074656000,4374.709,7.927e-05,2]
[423388636,1780074656000,-574.5598279,8.219e-05,2]
[423388639,1780074656000,-1635.91662496,0.00015,2]
[423388638,1780074656000,-500.0,9.041e-05,2]
[423388640,1780074656000,-1275.38190145,0.00015,2]
[423388644,1780074656000,-6760.11688328,0.00015,2]
[423388647,1780074656000,-2119.25919702,0.00015,2]
[423388666,1780074656000,-500.0,8.219e-05,2]
[423388672,1780074656000,-500.0,8.493e-05,2]
[423388670,1780074656000,-500.0,8.493e-05,2]
[423388678,1780074656000,-500.0,9.041e-05,2]
[423388680,1780074656000,-502.09701653,9.315e-05,2]
[423388685,1780074656000,-500.0,8.219e-05,2]
[423388682,1780074656000,-19677.60298304,0.00015,2]
[423388687,1780074656000,-14414.02128927,0.00015,2]
[423388676,1780074656000,-500.0,8.767e-05,2]
[423388674,1780074656000,-500.0,8.767e-05,2]
[423388668,1780074656000,-500.0,8.219e-05,2]
[423389079,1780074671000,5000.0,8.01e-05,2]
[423389081,1780074706000,280.0,0.00020547,120]
[423389089,1780074853000,2957.73790731,8.01e-05,2]
[423389294,1780075832000,-560.64781639,8.218e-05,2]
[423389296,1780075832000,-360.69500662,8.218e-05,2]
[423389298,1780075832000,-500.0,8.218e-05,2]
[423389300,1780075832000,-500.0,8.218e-05,2]
[423389290,1780075832000,-300.0,8.217e-05,2]
[423389292,1780075832000,-150.32322591,8.218e-05,2]
[423389302,1780075832000,-500.0,8.218e-05,2]
[423389306,1780075832000,-500.0,8.218e-05,2]
[423389309,1780075832000,-500.0,8.218e-05,2]
[423389312,1780075832000,-500.0,8.218e-05,2]
[423389310,1780075832000,-618.17620261,8.218e-05,2]
[423389316,1780075832000,-500.0,8.218e-05,2]
[423389314,1780075832000,-500.0,8.218e-05,2]
[423389318,1780075832000,-500.0,8.218e-05,2]
[423389321,1780075832000,-467.89565578,8.218e-05,2]
[423389320,1780075832000,-500.0,8.218e-05,2]
[423389304,1780075832000,-500.0,8.218e-05,2]
[423389367,1780075838000,-402.89565578,8.218e-05,2]
[423389366,1780075838000,-32.10434422,8.218e-05,2]
[423389406,1780075839000,-500.0,8.219e-05,2]
[423389404,1780075839000,-66.56776376,8.219e-05,2]
[423389401,1780075839000,-500.0,8.219e-05,2]
[423389405,1780075839000,-433.43223624,8.219e-05,2]
[423389407,1780075839000,-500.0,8.219e-05,2]
[423389408,1780075839000,-500.0,8.219e-05,2]
[423389388,1780075839000,-254.42191197,8.219e-05,2]
[423389411,1780075839000,-587.34226942,8.219e-05,2]
[423389403,1780075839000,-500.0,8.219e-05,2]
[423389402,1780075839000,-500.0,8.219e-05,2]
[423389400,1780075839000,-500.0,8.219e-05,2]
[423389410,1780075839000,-500.60297063,8.219e-05,2]
[423389412,1780075839000,-500.0,8.219e-05,2]
[423389409,1780075839000,-500.0,8.219e-05,2]
[423389416,1780075839000,-500.0,8.219e-05,2]
[423389425,1780075839000,-500.0,8.219e-05,2]
[423389424,1780075839000,-500.42590764,8.219e-05,2]
[423389413,1780075839000,-500.0,8.219e-05,2]
[423389415,1780075839000,-500.0,8.219e-05,2]
[423389395,1780075839000,-500.0,8.219e-05,2]
[423389418,1780075839000,-500.0,8.219e-05,2]
[423389423,1780075839000,-500.0,8.219e-05,2]
[423389422,1780075839000,-500.0,8.219e-05,2]
[423389417,1780075839000,-500.0,8.219e-05,2]
[423389420,1780075839000,-500.0,8.219e-05,2]
[423389421,1780075839000,-1690.93,8.219e-05,2]
[423389419,1780075839000,-500.0,8.219e-05,2]
[423389414,1780075839000,-500.0,8.219e-05,2]
[423389386,1780075839000,-500.0,8.219e-05,2]
[423389390,1780075839000,-500.0,8.219e-05,2]
[423389399,1780075839000,-500.0,8.219e-05,2]
[423389368,1780075839000,-97.10434422,8.218e-05,2]
[423389369,1780075839000,-500.0,8.218e-05,2]
[423389371,1780075839000,-500.0,8.218e-05,2]
[423389370,1780075839000,-500.0,8.218e-05,2]
[423389373,1780075839000,-500.0,8.218e-05,2]
[423389374,1780075839000,-182.72334183,8.218e-05,2]
[423389384,1780075839000,-500.9978282,8.219e-05,2]
[423389385,1780075839000,-500.8390604,8.219e-05,2]
[423389380,1780075839000,-500.0,8.219e-05,2]
[423389383,1780075839000,-500.0,8.219e-05,2]
[423389376,1780075839000,-392.93891494,8.219e-05,2]
[423389372,1780075839000,-500.0,8.218e-05,2]
[423389392,1780075839000,-293.21237687,8.219e-05,2]
[423389377,1780075839000,-1029.43068506,8.219e-05,2]
[423389381,1780075839000,-500.0,8.219e-05,2]
[423389378,1780075839000,-582.13898903,8.219e-05,2]
[423389382,1780075839000,-500.0,8.219e-05,2]
[423389389,1780075839000,-500.0,8.219e-05,2]
[423389398,1780075839000,-500.0,8.219e-05,2]
[423389387,1780075839000,-500.0,8.219e-05,2]
[423389394,1780075839000,-500.0,8.219e-05,2]
[423389397,1780075839000,-500.0,8.219e-05,2]
[423389427,1780075839000,-500.0,8.219e-05,2]
[423389391,1780075839000,-500.0,8.219e-05,2]
[423389396,1780075839000,-500.0,8.219e-05,2]
[423389393,1780075839000,-500.0,8.219e-05,2]
[423389379,1780075839000,-500.0,8.219e-05,2]
[423389428,1780075839000,-500.60979192,8.219e-05,2]
[423389426,1780075839000,-500.0,8.219e-05,2]
[423389430,1780075839000,-500.0,8.219e-05,2]
[423389464,1780075839000,-500.0,8.219e-05,2]
[423389463,1780075839000,-501.26179018,8.219e-05,2]
[423389462,1780075839000,-500.0,8.219e-05,2]
[423389471,1780075839000,-500.0,8.219e-05,2]
[423389470,1780075839000,-500.0,8.219e-05,2]
[423389472,1780075839000,-169.53158292,8.219e-05,2]
[423389466,1780075839000,-500.0,8.219e-05,2]
[423389461,1780075839000,-500.0,8.219e-05,2]
[423389467,1780075839000,-501.54227293,8.219e-05,2]
[423389469,1780075839000,-160.57296557,8.219e-05,2]
[423389429,1780075839000,-500.0,8.219e-05,2]
[423389476,1780075839000,-501.5055505,8.219e-05,2]
[423389475,1780075839000,-500.0,8.219e-05,2]
[423389460,1780075839000,-500.0,8.219e-05,2]
[423389474,1780075839000,-500.0,8.219e-05,2]
[423389481,1780075839000,-503.58858801,8.219e-05,2]
[423389473,1780075839000,-500.0,8.219e-05,2]
[423389477,1780075839000,-502.13846415,8.219e-05,2]
[423389479,1780075839000,-505.58002744,8.219e-05,2]
[423389482,1780075839000,-500.85834352,8.219e-05,2]
[423389484,1780075839000,-500.0,8.219e-05,2]
[423389480,1780075839000,-500.0,8.219e-05,2]
[423389485,1780075839000,-500.0,8.219e-05,2]
[423389478,1780075839000,-402.51230891,8.219e-05,2]
[423389487,1780075839000,-500.0,8.219e-05,2]
[423389489,1780075839000,-500.48,8.219e-05,2]
[423389488,1780075839000,-500.0,8.219e-05,2]
[423389486,1780075839000,-500.0,8.219e-05,2]
[423389483,1780075839000,-500.0,8.219e-05,2]
[423389465,1780075839000,-500.0,8.219e-05,2]
[423389468,1780075839000,-500.0,8.219e-05,2]
[423389456,1780075839000,-500.0,8.219e-05,2]
[423389434,1780075839000,-210.89540021,8.219e-05,2]
[423389455,1780075839000,-500.0,8.219e-05,2]
[423389433,1780075839000,-289.10459979,8.219e-05,2]
[423389431,1780075839000,-300.3928385,8.219e-05,2]
[423389435,1780075839000,-500.0,8.219e-05,2]
[423389437,1780075839000,-324.89540021,8.219e-05,2]
[423389440,1780075839000,-500.0,8.219e-05,2]
[423389438,1780075839000,-500.0,8.219e-05,2]
[423389439,1780075839000,-356.62382291,8.219e-05,2]
[423389436,1780075839000,-175.10459979,8.219e-05,2]
[423389441,1780075839000,-500.0,8.219e-05,2]
[423389443,1780075839000,-500.0,8.219e-05,2]
[423389444,1780075839000,-500.0,8.219e-05,2]
[423389442,1780075839000,-500.0,8.219e-05,2]
[423389432,1780075839000,-199.6071615,8.219e-05,2]
[423389445,1780075839000,-500.0,8.219e-05,2]
[423389451,1780075839000,-500.0,8.219e-05,2]
[423389446,1780075839000,-500.0,8.219e-05,2]
[423389453,1780075839000,-500.0,8.219e-05,2]
[423389452,1780075839000,-500.0,8.219e-05,2]
[423389454,1780075839000,-501.98856139,8.219e-05,2]
[423389450,1780075839000,-500.0,8.219e-05,2]
[423389457,1780075839000,-500.92667441,8.219e-05,2]
[423389448,1780075839000,-500.0,8.219e-05,2]
[423389447,1780075839000,-500.0,8.219e-05,2]
[423389459,1780075839000,-500.0,8.219e-05,2]
[423389458,1780075839000,-500.0,8.219e-05,2]
[423389449,1780075839000,-500.0,8.219e-05,2]
[423389519,1780075840000,-500.0,8.219e-05,2]
[423389530,1780075840000,-500.0,8.219e-05,2]
[423389528,1780075840000,-500.0,8.219e-05,2]
[423389541,1780075840000,-500.0,8.219e-05,2]
[423389543,1780075840000,-500.0,8.219e-05,2]
[423389529,1780075840000,-500.0,8.219e-05,2]
[423389517,1780075840000,-500.0,8.219e-05,2]
[423389518,1780075840000,-500.0,8.219e-05,2]
[423389520,1780075840000,-500.0,8.219e-05,2]
[423389534,1780075840000,-500.0,8.219e-05,2]
[423389527,1780075840000,-277.56,8.219e-05,2]
[423389539,1780075840000,-500.0,8.219e-05,2]
[423389535,1780075840000,-500.0,8.219e-05,2]
[423389548,1780075840000,-1422.3696,8.493e-05,2]
[423389536,1780075840000,-500.0,8.219e-05,2]
[423389537,1780075840000,-500.0,8.219e-05,2]
[423389533,1780075840000,-500.0,8.219e-05,2]
[423389546,1780075840000,-500.0,8.219e-05,2]
[423389547,1780075840000,-307.901341,8.429e-05,2]
[423389549,1780075840000,-500.0,8.493e-05,2]
[423389554,1780075840000,-500.0,8.493e-05,2]
[423389545,1780075840000,-538.6,8.219e-05,2]
[423389550,1780075840000,-500.0,8.493e-05,2]
[423389551,1780075840000,-500.0,8.493e-05,2]
[423389553,1780075840000,-500.0,8.493e-05,2]
[423389552,1780075840000,-500.0,8.493e-05,2]
[423389522,1780075840000,-500.0,8.219e-05,2]
[423389531,1780075840000,-500.0,8.219e-05,2]
[423389521,1780075840000,-501.05505094,8.219e-05,2]
[423389532,1780075840000,-500.0,8.219e-05,2]
[423389523,1780075840000,-500.0,8.219e-05,2]
[423389566,1780075840000,-500.0,8.493e-05,2]
[423389495,1780075840000,-500.0,8.219e-05,2]
[423389491,1780075840000,-500.0,8.219e-05,2]
[423389493,1780075840000,-500.0,8.219e-05,2]
[423389499,1780075840000,-500.0,8.219e-05,2]
[423389500,1780075840000,-250.24323296,8.219e-05,2]
[423389498,1780075840000,-500.0,8.219e-05,2]
[423389496,1780075840000,-500.0,8.219e-05,2]
[423389497,1780075840000,-500.0,8.219e-05,2]
[423389494,1780075840000,-500.77867721,8.219e-05,2]
[423389492,1780075840000,-500.0,8.219e-05,2]
[423389501,1780075840000,-500.93038303,8.219e-05,2]
[423389504,1780075840000,-500.0,8.219e-05,2]
[423389503,1780075840000,-500.0,8.219e-05,2]
[423389502,1780075840000,-500.0,8.219e-05,2]
[423389512,1780075840000,-500.0,8.219e-05,2]
[423389513,1780075840000,-500.0,8.219e-05,2]
[423389505,1780075840000,-350.9855695,8.219e-05,2]
[423389506,1780075840000,-500.0,8.219e-05,2]
[423389511,1780075840000,-248.87519191,8.219e-05,2]
[423389509,1780075840000,-503.6162454,8.219e-05,2]
[423389508,1780075840000,-500.0,8.219e-05,2]
[423389507,1780075840000,-500.0,8.219e-05,2]
[423389510,1780075840000,-500.0,8.219e-05,2]
[423389514,1780075840000,-500.0,8.219e-05,2]
[423389516,1780075840000,-500.0,8.219e-05,2]
[423389515,1780075840000,-500.0,8.219e-05,2]
[423389524,1780075840000,-500.0,8.219e-05,2]
[423389525,1780075840000,-167.46391936,8.219e-05,2]
[423389526,1780075840000,-500.0,8.219e-05,2]
[423389556,1780075840000,-500.0,8.493e-05,2]
[423389557,1780075840000,-500.0,8.493e-05,2]
[423389555,1780075840000,-500.0,8.493e-05,2]
[423389586,1780075840000,-599.87335629,8.493e-05,2]
[423389590,1780075840000,-518.35728631,8.493e-05,2]
[423389588,1780075840000,-500.0,8.493e-05,2]
[423389595,1780075840000,-500.98671211,8.493e-05,2]
[423389597,1780075840000,-500.0,8.493e-05,2]
[423389598,1780075840000,-500.0,8.493e-05,2]
[423389599,1780075840000,-500.0,8.493e-05,2]
[423389605,1780075840000,-500.0,8.493e-05,2]
[423389604,1780075840000,-501.85677646,8.493e-05,2]
[423389606,1780075840000,-500.0,8.493e-05,2]
[423389596,1780075840000,-504.69631939,8.493e-05,2]
[423389601,1780075840000,-500.0,8.493e-05,2]
[423389600,1780075840000,-500.0,8.493e-05,2]
[423389589,1780075840000,-501.55669434,8.493e-05,2]
[423389603,1780075840000,-500.0,8.493e-05,2]
[423389608,1780075840000,-501.35128039,8.493e-05,2]
[423389607,1780075840000,-500.0,8.493e-05,2]
[423389609,1780075840000,-500.0,8.493e-05,2]
[423389610,1780075840000,-501.970972,8.493e-05,2]
[423389611,1780075840000,-500.0,8.493e-05,2]
[423389618,1780075840000,-416.76110178,8.493e-05,2]
[423389615,1780075840000,-504.33708,8.493e-05,2]
[423389612,1780075840000,-500.0,8.493e-05,2]
[423389614,1780075840000,-500.0,8.493e-05,2]
[423389613,1780075840000,-502.15781425,8.493e-05,2]
[423389616,1780075840000,-500.0,8.493e-05,2]
[423389619,1780075840000,-500.0,8.493e-05,2]
[423389567,1780075840000,-500.0,8.493e-05,2]
[423389602,1780075840000,-501.35923542,8.493e-05,2]
[423389587,1780075840000,-500.0,8.493e-05,2]
[423389617,1780075840000,-178.25084398,8.493e-05,2]
[423389585,1780075840000,-500.0,8.493e-05,2]
[423389620,1780075840000,-500.0,8.493e-05,2]
[423389591,1780075840000,-500.0,8.493e-05,2]
[423389562,1780075840000,-500.0,8.493e-05,2]
[423389559,1780075840000,-327.8,8.493e-05,2]
[423389558,1780075840000,-500.0,8.493e-05,2]
[423389560,1780075840000,-500.0,8.493e-05,2]
[423389565,1780075840000,-500.0,8.493e-05,2]
[423389563,1780075840000,-500.0,8.493e-05,2]
[423389564,1780075840000,-500.0,8.493e-05,2]
[423389571,1780075840000,-500.0,8.493e-05,2]
[423389572,1780075840000,-1690.93,8.493e-05,2]
[423389568,1780075840000,-500.0,8.493e-05,2]
[423389570,1780075840000,-500.0,8.493e-05,2]
[423389577,1780075840000,-500.0,8.493e-05,2]
[423389561,1780075840000,-500.0,8.493e-05,2]
[423389579,1780075840000,-500.0,8.493e-05,2]
[423389584,1780075840000,-501.54089256,8.493e-05,2]
[423389576,1780075840000,-217.30813877,8.493e-05,2]
[423389581,1780075840000,-500.0,8.493e-05,2]
[423389594,1780075840000,-500.0,8.493e-05,2]
[423389582,1780075840000,-500.0,8.493e-05,2]
[423389592,1780075840000,-503.49346695,8.493e-05,2]
[423389593,1780075840000,-572.01974826,8.493e-05,2]
[423389578,1780075840000,-500.0,8.493e-05,2]
[423389569,1780075840000,-500.0,8.493e-05,2]
[423389574,1780075840000,-500.0,8.493e-05,2]
[423389575,1780075840000,-500.0,8.493e-05,2]
[423389573,1780075840000,-500.0,8.493e-05,2]
[423389580,1780075840000,-500.0,8.493e-05,2]
[423389583,1780075840000,-502.16438074,8.493e-05,2]
[423389650,1780075841000,-500.0,8.767e-05,2]
[423389655,1780075841000,-297.42535722,8.767e-05,2]
[423389648,1780075841000,-500.0,8.767e-05,2]
[423389657,1780075841000,-500.0,8.767e-05,2]
[423389656,1780075841000,-500.0,8.767e-05,2]
[423389653,1780075841000,-500.0,8.767e-05,2]
[423389652,1780075841000,-500.0,8.767e-05,2]
[423389654,1780075841000,-574.67448036,8.767e-05,2]
[423389645,1780075841000,-1690.93,8.767e-05,2]
[423389669,1780075841000,-500.0,8.767e-05,2]
[423389649,1780075841000,-500.0,8.767e-05,2]
[423389667,1780075841000,-500.0,8.767e-05,2]
[423389668,1780075841000,-500.0,8.767e-05,2]
[423389658,1780075841000,-500.0,8.767e-05,2]
[423389659,1780075841000,-500.0,8.767e-05,2]
[423389660,1780075841000,-500.0,8.767e-05,2]
[423389662,1780075841000,-500.0,8.767e-05,2]
[423389666,1780075841000,-500.0,8.767e-05,2]
[423389647,1780075841000,-500.0,8.767e-05,2]
[423389665,1780075841000,-500.0,8.767e-05,2]
[423389651,1780075841000,-500.0,8.767e-05,2]
[423389646,1780075841000,-354.65,8.767e-05,2]
[423389630,1780075841000,-500.0,8.493e-05,2]
[423389637,1780075841000,-387.7,8.767e-05,2]
[423389663,1780075841000,-500.0,8.767e-05,2]
[423389622,1780075841000,-500.0,8.493e-05,2]
[423389626,1780075841000,-500.0,8.493e-05,2]
[423389623,1780075841000,-500.0,8.493e-05,2]
[423389628,1780075841000,-500.0,8.493e-05,2]
[423389625,1780075841000,-500.0,8.493e-05,2]
[423389627,1780075841000,-335.4443692,8.493e-05,2]
[423389621,1780075841000,-500.0,8.493e-05,2]
[423389624,1780075841000,-500.0,8.493e-05,2]
[423389629,1780075841000,-500.0,8.493e-05,2]
[423389641,1780075841000,-500.0,8.767e-05,2]
[423389632,1780075841000,-500.0,8.493e-05,2]
[423389644,1780075841000,-500.0,8.767e-05,2]
[423389643,1780075841000,-500.0,8.767e-05,2]
[423389631,1780075841000,-500.0,8.493e-05,2]
[423389636,1780075841000,-500.0,8.767e-05,2]
[423389633,1780075841000,-500.0,8.493e-05,2]
[423389639,1780075841000,-500.0,8.767e-05,2]
[423389634,1780075841000,-500.0,8.493e-05,2]
[423389638,1780075841000,-500.0,8.767e-05,2]
[423389640,1780075841000,-500.0,8.767e-05,2]
[423389635,1780075841000,-500.0,8.767e-05,2]
[423389642,1780075841000,-500.0,8.767e-05,2]
[423389664,1780075841000,-500.0,8.767e-05,2]
[423389684,1780075841000,-1690.93,9.041e-05,2]
[423389671,1780075841000,-500.0,8.767e-05,2]
[423389697,1780075841000,-500.0,9.041e-05,2]
[423389700,1780075841000,-500.0,9.041e-05,2]
[423389699,1780075841000,-500.0,9.041e-05,2]
[423389702,1780075841000,-500.0,9.041e-05,2]
[423389703,1780075841000,-501.35082466,9.041e-05,2]
[423389704,1780075841000,-500.0,9.041e-05,2]
[423389701,1780075841000,-500.0,9.041e-05,2]
[423389706,1780075841000,-10000.0,9.123e-05,2]
[423389707,1780075841000,-307.901341,9.138e-05,2]
[423389705,1780075841000,-500.0,9.041e-05,2]
[423389708,1780075841000,-500.0,9.315e-05,2]
[423389716,1780075841000,-500.0,9.315e-05,2]
[423389661,1780075841000,-500.0,8.767e-05,2]
[423389712,1780075841000,-500.0,9.315e-05,2]
[423389714,1780075841000,-500.0,9.315e-05,2]
[423389709,1780075841000,-500.0,9.315e-05,2]
[423389717,1780075841000,-501.169022,9.315e-05,2]
[423389711,1780075841000,-500.0,9.315e-05,2]
[423389710,1780075841000,-500.0,9.315e-05,2]
[423389715,1780075841000,-1690.93,9.315e-05,2]
[423389718,1780075841000,-500.0,9.315e-05,2]
[423389696,1780075841000,-500.0,9.041e-05,2]
[423389698,1780075841000,-500.0,9.041e-05,2]
[423389713,1780075841000,-500.0,9.315e-05,2]
[423389694,1780075841000,-500.0,9.041e-05,2]
[423389693,1780075841000,-500.0,9.041e-05,2]
[423389670,1780075841000,-500.0,8.767e-05,2]
[423389674,1780075841000,-307.901341,8.784e-05,2]
[423389675,1780075841000,-420.0,9.039e-05,2]
[423389672,1780075841000,-500.0,8.767e-05,2]
[423389676,1780075841000,-500.0,9.041e-05,2]
[423389677,1780075841000,-500.0,9.041e-05,2]
[423389678,1780075841000,-500.0,9.041e-05,2]
[423389682,1780075841000,-500.0,9.041e-05,2]
[423389680,1780075841000,-540.35,9.041e-05,2]
[423389679,1780075841000,-500.0,9.041e-05,2]
[423389673,1780075841000,-500.0,8.767e-05,2]
[423389683,1780075841000,-500.0,9.041e-05,2]
[423389695,1780075841000,-500.0,9.041e-05,2]
[423389681,1780075841000,-500.0,9.041e-05,2]
[423389692,1780075841000,-500.0,9.041e-05,2]
[423389687,1780075841000,-500.0,9.041e-05,2]
[423389688,1780075841000,-500.0,9.041e-05,2]
[423389686,1780075841000,-500.0,9.041e-05,2]
[423389690,1780075841000,-500.0,9.041e-05,2]
[423389689,1780075841000,-500.0,9.041e-05,2]
[423389691,1780075841000,-500.0,9.041e-05,2]
[423389685,1780075841000,-500.0,9.041e-05,2]
[423389754,1780075842000,-1690.93,9.863e-05,2]
[423389760,1780075842000,-500.0,9.863e-05,2]
[423389762,1780075842000,-587.0,9.943e-05,2]
[423389765,1780075842000,-500.0,0.00010136,2]
[423389764,1780075842000,-500.0,0.00010136,2]
[423389757,1780075842000,-500.0,9.863e-05,2]
[423389753,1780075842000,-500.0,9.863e-05,2]
[423389758,1780075842000,-500.0,9.863e-05,2]
[423389756,1780075842000,-501.26508614,9.863e-05,2]
[423389750,1780075842000,-500.0,9.863e-05,2]
[423389752,1780075842000,-500.0,9.863e-05,2]
[423389759,1780075842000,-500.0,9.863e-05,2]
[423389755,1780075842000,-394.12,9.863e-05,2]
[423389761,1780075842000,-500.0,9.863e-05,2]
[423389776,1780075842000,-1690.93,0.0001041,2]
[423389767,1780075842000,-500.0,0.00010136,2]
[423389770,1780075842000,-151.95,0.00010136,2]
[423389777,1780075842000,-500.0,0.0001041,2]
[423389768,1780075842000,-500.0,0.00010136,2]
[423389778,1780075842000,-500.0,0.0001041,2]
[423389766,1780075842000,-1690.93,0.00010136,2]
[423389769,1780075842000,-500.0,0.00010136,2]
[423389771,1780075842000,-500.0,0.00010136,2]
[423389773,1780075842000,-177.38140657,0.00010218,2]
[423389772,1780075842000,-307.901341,0.00010203,2]
[423389774,1780075842000,-435.75,0.0001041,2]
[423389775,1780075842000,-500.0,0.0001041,2]
[423389751,1780075842000,-411.45,9.863e-05,2]
[423389763,1780075842000,-167.46391931,9.974e-05,2]
[423389745,1780075842000,-450.08,9.589e-05,2]
[423389782,1780075842000,-1690.93,0.00010684,2]
[423389743,1780075842000,-500.0,9.589e-05,2]
[423389720,1780075842000,-500.0,9.315e-05,2]
[423389719,1780075842000,-500.0,9.315e-05,2]
[423389721,1780075842000,-500.0,9.315e-05,2]
[423389723,1780075842000,-500.0,9.315e-05,2]
[423389728,1780075842000,-500.0,9.315e-05,2]
[423389727,1780075842000,-500.0,9.315e-05,2]
[423389722,1780075842000,-500.0,9.315e-05,2]
[423389726,1780075842000,-500.0,9.315e-05,2]
[423389725,1780075842000,-500.0,9.315e-05,2]
[423389724,1780075842000,-500.0,9.315e-05,2]
[423389729,1780075842000,-500.0,9.315e-05,2]
[423389730,1780075842000,-500.0,9.315e-05,2]
[423389732,1780075842000,-307.901341,9.493e-05,2]
[423389749,1780075842000,-500.0,9.863e-05,2]
[423389741,1780075842000,-500.0,9.589e-05,2]
[423389733,1780075842000,-500.0,9.589e-05,2]
[423389736,1780075842000,-500.0,9.589e-05,2]
[423389735,1780075842000,-500.0,9.589e-05,2]
[423389731,1780075842000,-500.0,9.315e-05,2]
[423389739,1780075842000,-500.0,9.589e-05,2]
[423389740,1780075842000,-500.0,9.589e-05,2]
[423389738,1780075842000,-1690.93,9.589e-05,2]
[423389737,1780075842000,-500.0,9.589e-05,2]
[423389742,1780075842000,-500.0,9.589e-05,2]
[423389748,1780075842000,-307.901341,9.848e-05,2]
[423389747,1780075842000,-500.0,9.589e-05,2]
[423389746,1780075842000,-500.0,9.589e-05,2]
[423389744,1780075842000,-500.0,9.589e-05,2]
[423389734,1780075842000,-500.0,9.589e-05,2]
[423389780,1780075842000,-500.0,0.0001041,2]
[423389811,1780075842000,-1690.93,0.00012328,2]
[423389785,1780075842000,-500.0,0.00010684,2]
[423389809,1780075842000,-192.33971171,0.000123,2]
[423389814,1780075842000,-192.33971171,0.000126,2]
[423389816,1780075842000,-1690.93,0.00012602,2]
[423389812,1780075842000,-500.0,0.00012328,2]